Cogmind - Beta 13 @@@ ROGUE MODE // 2024.04.20 @ 18:22:51 Player: Red_Zig Result: Destroyed by S-27 Virus with Autogun Performance ------------- Evolutions (5) 2500 Regions Visited (10) 2000 Robots Destroyed (199) 995 Value Destroyed (6437) 6437 Prototype IDs (10) 200 Alien Tech Used (0) 0 Bonus (2269) 2269 TOTAL SCORE: 14401 Bonus ------- High Alert Combat Kills 1246 Follower Combat Kills 523 Entered DSFs 500 Cogmind --------- Core Integrity 0/1000 Matter 290/300 Energy 79/100 System Corruption 16% Temperature Cool (0) Movement Core (50) Location -5/Upper Caves Parts ------- > --- POWER (1) -------- (None) > --- PROPULSION (4) --- (None) > --- UTILITY (8) ------ Improved Terrain Scan Processor > --- WEAPON (4) ------- Ripper > --- INVENTORY (5) ---- Improved Propulsion Shielding Hardened Heavy Armor Plating Authchip [R/Combat] Enhanced Coil Gun Peak State ------------ > --- POWER ------------ Fission-Angular Core > --- PROPULSION ------- Armored Leg Armored Leg Armored Leg Flying NPA-Armored Exoskeleton > --- UTILITY ---------- Armored Scrap Engine Improved Energy Well Targeting Computer Recoil Nullifier Kinecellerator Improved Light Armor Plating Advanced Shield Generator > --- WEAPON ----------- Enhanced Coil Gun Mass Driver Heavy Shock Bomb Launcher Kinetic Construct/C > --- INVENTORY -------- Carbon-fiber Leg Authchip [R/Combat] Authchip [R/Combat] Mass Driver [Rating: 93] Favorites ----------- Power Light Angular Momentum Engine Engine Light Angular Momentum Engine Power Core Constructs Propulsion Armored Leg Treads Light Treads Leg Armored Leg Wheel Wheel Flight Unit Constructs Utility Targeting Computer Device Armored Scrap Engine Storage Large Storage Unit Processor Targeting Computer Hackware Authchip [R/Combat] Protection Improved Light Armor Plating Weapon Enhanced Autogun Energy Gun Variable Charge Gun Energy Cannon Advanced Beam Cannon Ballistic Gun Enhanced Autogun Ballistic Cannon Constructs Launcher Heavy Shock Bomb Launcher Impact Weapon Heavy Mace Slashing Weapon Katana Build | -11 -10 -9 -8 -8 -8 -6 -6 -5 -5 -5 ------- Run | Yrd Mat Mat Mat Sto Rec Fac DSF Fac Upp Upp Slots Evolved 10 | . . 2 2 . . 4 . 2 . . Power . | . . . . . . . . . . . Propulsion 2 | . . . 2 . . . . . . . Utility 6 | . . 2 . . . 3 . 1 . . Weapon 2 | . . . . . . 1 . 1 . . Parts Attached 124 | 8 6 34 9 19 3 4 7 31 1 2 Power 9 | 1 1 5 . 1 . . . 1 . . Engine 7 | 1 . 5 . 1 . . . . . . Core 2 | . 1 . . . . . . 1 . . Reactor . | . . . . . . . . . . . Propulsion 39 | 2 2 7 9 7 1 . 4 7 . . Treads 7 | . . 5 . 1 . . . 1 . . Leg 29 | 2 2 . 8 6 1 . 4 6 . . Wheel 3 | . . 2 1 . . . . . . . Hover . | . . . . . . . . . . . Flight . | . . . . . . . . . . . Utility 34 | 2 3 7 . 1 1 3 2 13 1 1 Device 13 | 1 . . . 1 1 . 1 9 . . Storage 3 | 1 1 . . . . . . 1 . . Processor 7 | . 2 4 . . . . . . . 1 Hackware 1 | . . . . . . . . . 1 . Protection 10 | . . 3 . . . 3 1 3 . . Artifact . | . . . . . . . . . . . Weapon 42 | 3 . 15 . 10 1 1 1 10 . 1 Energy Gun 3 | 1 . . . 1 . . 1 . . . Energy Cannon 4 | . . . . 3 1 . . . . . Ballistic Gun 17 | 2 . 13 . 1 . . . 1 . . Ballistic Cannon 2 | . . . . . . . . 2 . . Launcher 8 | . . 2 . 3 . 1 . 2 . . Special Weapon . | . . . . . . . . . . . Impact Weapon 4 | . . . . . . . . 4 . . Slashing Weapon 4 | . . . . 2 . . . 1 . 1 Piercing Weapon . | . . . . . . . . . . . Special Melee Weapon . | . . . . . . . . . . . Unidentified Prototypes 7 | . . 3 . 1 . . . 3 . . Parts Lost 58 | . . 9 3 11 . . 5 27 . 3 Power 6 | . . 2 . 1 . . 2 1 . . Propulsion 18 | . . 2 3 5 . . 1 7 . . Utility 20 | . . 3 . . . . 2 13 . 2 Weapon 14 | . . 2 . 5 . . . 6 . 1 Highest Loss Streak 17 | . . 2 3 3 . . 2 17 . 3 To Critical Strikes 2 | . . . . . . . . 2 . . Average Slot Usage (%) 91 | . 100 97 96 97 86 86 85 83 14 5 Engine 6 | . 2 9 9 8 9 6 5 1 . . Core 1 | . 11 . . . . . . . . . Treads 6 | . . 17 7 2 . . . . . . Leg 18 | . 28 . 22 31 36 26 25 19 . . Wheel 1 | . . 3 3 . . . . . . . Device 5 | . 7 . . 4 9 6 11 14 . . Storage 8 | . 14 11 9 9 9 6 6 4 . . Processor 17 | . 7 29 27 22 9 6 6 5 5 5 Protection 3 | . . 2 . . . 20 10 9 . . Energy Gun 1 | . . . . 1 . . 2 3 . . Energy Cannon 3 | . . . . 10 12 6 6 1 . . Ballistic Gun 11 | . 28 21 18 2 2 6 6 2 . . Ballistic Cannon 2 | . . . . . . . . 8 . . Launcher 1 | . . . . 1 . . 1 2 . . Naked Turns . | . . . . . . . . . . . Heaviest Build 61 | 14 29 44 34 38 38 50 53 61 3 3 Greatest Support 80 | 20 20 40 80 80 53 53 64 64 3 3 Greatest Overweight (x) 6 | 3 1 2 1 1 . . 1 6 . . Average Overweight (x) . | . . . . . . . . . . . Largest Inventory Capacity 15 | 8 15 15 15 15 15 15 15 15 5 5 Average Capacity 12 | 7 12 15 15 15 15 15 15 6 5 5 Most Carried 15 | 6 13 15 15 15 15 13 13 12 5 5 Average Carried 11 | 4 11 14 14 13 14 10 11 4 4 5 Final Capacity 15 | 8 15 15 15 15 15 15 15 5 5 5 Final Carried 15 | 6 13 15 15 15 14 10 13 4 5 5 Scrap Engine Consumption 68 | . . . . . 21 . 2 45 . . Constructs Created 6 | . . . . . 1 . 1 4 . . Constructs Modified 25 | . . . . . . . . 25 . . Class Distribution -------------------- 51% | Mutant 25% | Scavenger-Mutant 16% | Tank 6% | Gunner Dominant Class ---------------- Scavenger-Mutant | -10/Materials Mutant | -9/Materials Mutant | -8/Materials Mutant | -8/Storage Scavenger-Mutant | -8/Recycling Scavenger-Mutant | -6/Factory Tank | -6/DSF Tank | -5/Factory Mutant | -5/Upper Caves Mutant | -5/Upper Caves Resources | -11 -10 -9 -8 -8 -8 -6 -6 -5 -5 -5 ----------- Run | Yrd Mat Mat Mat Sto Rec Fac DSF Fac Upp Upp Matter Collected 4125 | 288 232 1123 556 498 53 . 76 1275 16 8 Remotely 183 | 10 173 . . . . . . . . . Salvage Created 7964 | 50 409 1535 727 1548 687 . 60 2948 . . Parts 399 | 4 22 115 33 84 26 . 7 108 . . Haulers Intercepted 15 | . 2 5 1 4 . . . 3 . . Recyclers Shooed 9 | . 1 1 . . 1 . . 6 . . Parts Field Recycled . | . . . . . . . . . . . Retrieved Matter . | . . . . . . . . . . . Parts Self-Destructed . | . . . . . . . . . . . Prevented . | . . . . . . . . . . . Kills | -11 -10 -9 -8 -8 -8 -6 -6 -5 -5 -5 ------- Run | Yrd Mat Mat Mat Sto Rec Fac DSF Fac Upp Upp Combat Hostiles Destroyed 132 | . 5 37 12 30 4 . 1 43 . . Melee 6 | . . . . 1 . . . 5 . . Guns 70 | . 5 33 12 10 . . 1 9 . . Cannons 34 | . . . . 8 4 . . 22 . . AOE 19 | . . 4 . 11 . . . 4 . . Classes Destroyed 17 | 1 4 5 . 3 . . 1 3 . . Worker 8 | . 1 5 . 1 . . . 1 . . Builder 8 | . . 1 . . . . . 7 . . Tunneler 1 | . . . . . . . . 1 . . Hauler 15 | . 2 5 1 4 . . . 3 . . Recycler 13 | 1 1 . . . 6 . . 5 . . Mechanic 2 | . . . . 2 . . . . . . Operator 8 | . . 2 2 3 . . . 1 . . Watcher 12 | . 1 4 1 1 . . . 5 . . Swarmer 26 | . . 13 . 3 . . . 10 . . Grunt 62 | . 5 14 8 14 . . . 21 . . Brawler 2 | . . . . 1 . . . 1 . . Duelist 5 | . . 1 . 3 . . . 1 . . Protector 2 | . . . . 2 . . . . . . Sentry 27 | . . 9 4 7 4 . . 3 . . Hunter 2 | . . . . . . . . 2 . . Programmer 5 | . . . . . . . . 5 . . Heavy 1 | . . . . . . . 1 . . . Best Kill Streak 8 | 1 3 6 4 8 5 . 1 7 . . Combat Bots Only 8 | . 2 4 4 8 1 . 1 5 . . Max Kills in Single Turn 3 | 1 1 2 1 3 1 . 1 3 . . Gunslinging . | . . . . . . . . . . . Exploded 3 | . . 2 . 3 . . . 2 . . Melee 1 | . . . . 1 . . . 1 . . Uniques/NPCs Destroyed . | . . . . . . . . . . . Combat | -11 -10 -9 -8 -8 -8 -6 -6 -5 -5 -5 -------- Run | Yrd Mat Mat Mat Sto Rec Fac DSF Fac Upp Upp Hostile Shots Fired 860 | . 26 171 50 137 6 . 101 346 1 22 Missed 245 | . 7 53 10 40 2 . 29 95 1 8 Damage Taken 10695 | . 238 1385 620 1668 58 . 1584 4902 . 240 Core 1885 | . 52 267 49 313 . . 203 823 . 178 Absorbed by Shields 208 | . . . . . . . . 208 . . Redirected to Shielding 51 | . . . . . . . 51 . . . Regen/Repaired (Parts) 514 | . . . . . . . 45 469 . . Core Remaining (%) 64 | 100 79 33 . . 34 . 76 . . . Volleys Fired 480 | 2 48 109 66 107 16 . 4 128 . . Largest 4 | 2 2 2 2 2 2 . 3 4 . . Hottest 327 | 40 40 63 50 136 136 . 327 282 . . Shots Fired 982 | 4 97 211 132 171 32 . 11 324 . . Gun 638 | 4 97 207 132 89 4 . 7 98 . . Cannon 317 | . . . . 68 28 . 4 217 . . Launcher 27 | . . 4 . 14 . . . 9 . . Special . | . . . . . . . . . . . Kinetic 728 | 4 97 207 132 54 . . . 234 . . Thermal 227 | . . . . 103 32 . 11 81 . . Explosive 18 | . . 4 . 14 . . . . . . Electromagnetic 9 | . . . . . . . . 9 . . Robot Hit Streak 26 | 1 10 22 20 22 8 . 16 26 . . Robot Miss Streak 5 | 1 5 5 4 2 1 . 2 5 . . Penetration Max 1 | . . . . . . . . 1 . . Secondary Targets 3 | . . 3 . . . . . . . . Max Gunslinging Chain 1 | . . 1 . . . . . . . . Shots Hit Robots 714 | 2 62 146 91 142 23 . 9 239 . . Core Hits 340 | 2 22 90 31 80 12 . 3 100 . . Critical Kills 3 | . 1 2 . . . . . . . . Critical Parts Destroyed 4 | . . 1 . . . . . 3 . . Critical Strikes 18 | . 1 3 . 6 . . . 8 . . Burn 3 | . . . . 3 . . . . . . Destroy 4 | . 1 3 . . . . . . . . Blast 4 | . . . . . . . . 4 . . Smash 3 | . . . . . . . . 3 . . Sever 4 | . . . . 3 . . . 1 . . Melee Attacks 67 | . . . . 23 . . . 44 . . Impact 29 | . . . . . . . . 29 . . Slashing 38 | . . . . 23 . . . 15 . . Piercing . | . . . . . . . . . . . Sneak Attacks 7 | . . . . 4 . . . 3 . . Combat Hostiles . | . . . . . . . . . . . Follow-up Attacks 2 | . . . . . . . . 2 . . Damage Inflicted 19345 | 25 671 2821 1568 4380 494 . 241 9145 . . Guns 7577 | 25 661 2233 1559 1105 33 . 179 1782 . . Cannons 5626 | . . . . 984 433 . 62 4147 . . Explosions 3711 | . . 505 . 1659 . . . 1547 . . Melee 2217 | . . . . 632 . . . 1585 . . Ramming 214 | . 10 83 9 . 28 . . 84 . . Kinetic 10138 | 25 661 2233 1559 699 . . . 4961 . . Thermal 4034 | . . . . 1390 466 . 241 1937 . . Explosive 2476 | . . 505 . 1659 . . . 312 . . Electromagnetic 266 | . . . . . . . . 266 . . Impact 996 | . . . . . . . . 996 . . Slashing 1221 | . . . . 632 . . . 589 . . Piercing . | . . . . . . . . . . . Highest Corruption 16 | . 3 4 . . . . . 16 16 16 Average Corruption 3 | . 2 2 . . . . . 4 16 16 Corruption Purged 5 | . . . . . . . . 5 . . Corruption Blocked . | . . . . . . . . . . . Effects 102 | . 17 41 . . . . . 35 8 1 Message Errors 32 | . 8 11 . . . . . 10 3 . Matter Fused 15 | . 1 8 . . . . . 3 3 . Heat Flow Errors 12 | . 4 3 . . . . . 3 1 1 Energy Discharges 11 | . 2 5 . . . . . 4 . . Parts Rejected 2 | . . . . . . . . 2 . . Parts Fused 1 | . . . . . . . . 1 . . Data Loss (minor) 14 | . . 7 . . . . . 6 1 . Data Loss (major) 6 | . 1 2 . . . . . 3 . . Misfires 4 | . 1 3 . . . . . . . . Alerts 4 | . . 1 . . . . . 3 . . Weapon Failures 1 | . . 1 . . . . . . . . Overload Shots 3 | . . . . . . . 2 1 . . Overflow Damage 913 | . . 16 . 156 18 . . 723 . . Projectiles 155 | . . . . 2 18 . . 135 . . Explosions 274 | . . 16 . 25 . . . 233 . . Melee 484 | . . . . 129 . . . 355 . . Knockbacks 42 | . . . . . . . . 42 . . Impact 3 | . . . . . . . . 3 . . Kinetic 37 | . . . . . . . . 37 . . Secondary 2 | . . . . . . . . 2 . . Self-Inflicted Damage 166 | . . 8 . 28 . . . 130 . . Shots 7 | . . . . 2 . . . 5 . . Rammed 15 | . . 15 . . . . . . . . Targets Rammed 33 | . 3 17 1 . 3 . . 9 . . Kicked 16 | . 3 . 1 . 3 . . 9 . . Crushed 2 | . . 2 . . . . . . . . Highest Temperature 554 | . 281 198 48 282 421 . 390 554 67 253 Average Temperature 104 | . 55 20 14 75 165 . 172 140 47 133 Received Heat Transfer 2928 | . 135 447 324 729 27 . 300 921 . 45 Effects 18 | . . . . . 4 . . 13 . 1 Shutdowns 5 | . . . . . 1 . . 4 . . Energy Bleed 1 | . . . . . . . . 1 . . Interference 9 | . . . . . 3 . . 5 . 1 Damage (minor) 2 | . . . . . . . . 2 . . Damage (major) 1 | . . . . . . . . 1 . . Siege Activations . | . . . . . . . . . . . Robots Corrupted . | . . . . . . . . . . . Combat Hostiles . | . . . . . . . . . . . Parts Fried 9 | . . . . . . . . 9 . . Impact Corruptions 10 | . . . . . . . . 10 . . Robots Melted . | . . . . . . . . . . . Combat Hostiles . | . . . . . . . . . . . Parts Melted 6 | . . . . 2 1 . . 3 . . Heat Transferred 6535 | . . . . 3034 851 . 359 2291 . . Parts Sabotaged 4 | . . . . . . . . 4 . . Parts Stolen . | . . . . . . . . . . . Parts Stripped . | . . . . . . . . . . . Power Chain Reactions . | . . . . . . . . . . . Alert | -11 -10 -9 -8 -8 -8 -6 -6 -5 -5 -5 ------- Run | Yrd Mat Mat Mat Sto Rec Fac DSF Fac Upp Upp Peak Influence 1545 | 5 132 584 442 1021 442 72 55 1545 . . Initial 392 | . 3 . 208 132 392 72 50 18 . . Average 411 | 1 40 430 276 638 280 72 40 538 . . Maximum Alert Level 4 | . . 2 2 3 2 . . 4 . . Low Security (%) 32 | 100 100 14 3 3 25 100 100 48 . . Level 1 20 | . . 7 96 27 51 . . 6 . . Level 2 28 | . . 78 . 22 22 . . 3 . . Level 3 11 | . . . . 47 . . . 15 . . Level 4 6 | . . . . . . . . 26 . . Level 5 . | . . . . . . . . . . . High Security . | . . . . . . . . . . . Max Security . | . . . . . . . . . . . Squads Dispatched 27 | . . 4 3 8 . . 2 9 . 1 Investigation 2 | . . . 1 . . . . 1 . . Extermination 3 | . . . . . . . . 3 . . Reinforcement 11 | . . 2 2 2 . . 2 3 . . Assault 9 | . . 2 . 4 . . . 2 . 1 Garrison 2 | . . . . 2 . . . . . . Intercept . | . . . . . . . . . . . Searches Triggered . | . . . . . . . . . . . Construction Impeded 1 | . . . . . . . . 1 . . Haulers Reinforced 2 | . . . . . . . . 2 . . Active Scanning Responses . | . . . . . . . . . . . Cargo Convoy Interrupts . | . . . . . . . . . . . Stealth | -11 -10 -9 -8 -8 -8 -6 -6 -5 -5 -5 --------- Run | Yrd Mat Mat Mat Sto Rec Fac DSF Fac Upp Upp Distress Signals 9 | . 1 2 1 3 . . . 2 . . Communications Jammed . | . . . . . . . . . . . Distress Signals . | . . . . . . . . . . . Times Spotted 248 | . 13 61 22 59 1 . 8 73 2 9 Peak Tracking Total 10 | . 3 6 5 10 1 . 6 10 5 10 Tactical Retreats 15 | . 2 3 1 . . . 1 8 . . Traps | -11 -10 -9 -8 -8 -8 -6 -6 -5 -5 -5 ------- Run | Yrd Mat Mat Mat Sto Rec Fac DSF Fac Upp Upp Traps Triggered 11 | . 2 5 1 1 . . . 2 . . Indirectly . | . . . . . . . . . . . Trap Hack Attempts . | . . . . . . . . . . . Triggered . | . . . . . . . . . . . Disarmed . | . . . . . . . . . . . Reprogrammed . | . . . . . . . . . . . Reused . | . . . . . . . . . . . Traps Extracted . | . . . . . . . . . . . Installed . | . . . . . . . . . . . Triggered . | . . . . . . . . . . . Machines | -11 -10 -9 -8 -8 -8 -6 -6 -5 -5 -5 ---------- Run | Yrd Mat Mat Mat Sto Rec Fac DSF Fac Upp Upp Machines Disabled 31 | . . 1 2 4 . . . 24 . . Max in Single Turn 8 | . . 1 1 1 . . . 8 . . Garrison Access 2 | . . . . 1 . . . 1 . . Machines Repaired . | . . . . . . . . . . . Machines Dismantled . | . . . . . . . . . . . Machines Sabotaged . | . . . . . . . . . . . Overloaded Fab Kills . | . . . . . . . . . . . Hacking | -11 -10 -9 -8 -8 -8 -6 -6 -5 -5 -5 --------- Run | Yrd Mat Mat Mat Sto Rec Fac DSF Fac Upp Upp Machines Accessed 44 | . 5 8 5 11 6 1 . 8 . . Terminals 35 | . 4 8 5 8 5 1 . 4 . . Fabricators . | . . . . . . . . . . . Repair Stations 3 | . . . . 1 . . . 2 . . Recycling Units 3 | . 1 . . 1 1 . . . . . Scanalyzers 1 | . . . . . . . . 1 . . Garrison Access 2 | . . . . 1 . . . 1 . . Total Hacks 103 | . 13 19 14 25 17 1 . 14 . . Successful 57 | . 9 8 9 13 12 1 . 5 . . Failed 46 | . 4 11 5 12 5 . . 9 . . Catastrophic 8 | . 1 . . 2 . . . 5 . . Database Lockouts . | . . . . . . . . . . . Manual 89 | . 11 18 14 22 12 . . 12 . . Terminals 83 | . 9 19 14 20 14 1 . 6 . . Fabricators . | . . . . . . . . . . . Repair Stations 5 | . . . . 1 . . . 4 . . Recycling Units 9 | . 4 . . 2 3 . . . . . Scanalyzers 3 | . . . . . . . . 3 . . Garrison Access 3 | . . . . 2 . . . 1 . . Terminal Hacks 7 | . 1 . . 1 3 1 . 1 . . Record 2 | . . . . . 2 . . . . . Open Door 1 | . . . . 1 . . . . . . Open DSF 2 | . . . . . . 1 . 1 . . Locate Traps 1 | . 1 . . . . . . . . . Hauler Manifests 1 | . . . . . 1 . . . . . Fabricator Hacks . | . . . . . . . . . . . Repair Station Hacks . | . . . . . . . . . . . Recycling Unit Hacks 1 | . . . . 1 . . . . . . Report Inventory 1 | . . . . 1 . . . . . . Scanalyzer . | . . . . . . . . . . . Garrison Access Hacks 2 | . . . . 1 . . . 1 . . Seal Access 2 | . . . . 1 . . . 1 . . Unauthorized Hacks 47 | . 8 8 9 10 9 . . 3 . . Terminals 37 | . 4 8 9 8 7 . . 1 . . Track 2 | . 1 . . . 1 . . . . . Botnet 22 | . 3 4 5 5 4 . . 1 . . Disrupt 8 | . . 2 3 2 1 . . . . . Operators 5 | . . 2 1 1 1 . . . . . Fabricators . | . . . . . . . . . . . Repair Stations 2 | . . . . 1 . . . 1 . . Mechanics 2 | . . . . 1 . . . 1 . . Recycling Units 7 | . 4 . . 1 2 . . . . . Monitor 2 | . 1 . . . 1 . . . . . Reject 1 | . 1 . . . . . . . . . Recyclers 3 | . 1 . . 1 1 . . . . . Mask 1 | . 1 . . . . . . . . . Scanalyzers 1 | . . . . . . . . 1 . . Extract 1 | . . . . . . . . 1 . . Garrison Access . | . . . . . . . . . . . Data Cores Recovered . | . . . . . . . . . . . Used . | . . . . . . . . . . . Hacking Detections 35 | . 5 7 5 9 3 . . 6 . . Full Trace Events . | . . . . . . . . . . . Feedback Events . | . . . . . . . . . . . Feedback Blocked . | . . . . . . . . . . . Robot Schematics Acquired . | . . . . . . . . . . . Robots Built . | . . . . . . . . . . . Authchips . | . . . . . . . . . . . Time . | . . . . . . . . . . . Total Robot Build Rating . | . . . . . . . . . . . Part Schematics Acquired 7 | . . . . . . . . 7 . . Parts Built . | . . . . . . . . . . . Authchips . | . . . . . . . . . . . Time . | . . . . . . . . . . . Total Part Build Rating . | . . . . . . . . . . . Parts Repaired . | . . . . . . . . . . . Time . | . . . . . . . . . . . Parts Recycled . | . . . . . . . . . . . Recycled Matter . | . . . . . . . . . . . Retrieved Matter . | . . . . . . . . . . . Retrieved Components . | . . . . . . . . . . . Parts Scanalyzed . | . . . . . . . . . . . Part Schematics Acquired . | . . . . . . . . . . . Parts Damaged . | . . . . . . . . . . . Bothacking | -11 -10 -9 -8 -8 -8 -6 -6 -5 -5 -5 ------------ Run | Yrd Mat Mat Mat Sto Rec Fac DSF Fac Upp Upp Used RIF Installer . | . . . . . . . . . . . Robots Hacked . | . . . . . . . . . . . Non-combat . | . . . . . . . . . . . Combat . | . . . . . . . . . . . Robot Hacks Applied . | . . . . . . . . . . . Relay Couplers Released 1 | . . . . . . . . 1 . . Machine Destruction 1 | . . . . . . . . 1 . . Fabnet Peak Effective % . | . . . . . . . . . . . Robots Rewired . | . . . . . . . . . . . Allies Hacked . | . . . . . . . . . . . Hacks Repelled . | . . . . . . . . . . . Allies | -11 -10 -9 -8 -8 -8 -6 -6 -5 -5 -5 -------- Run | Yrd Mat Mat Mat Sto Rec Fac DSF Fac Upp Upp Total Allies 2 | . . . . 2 . . . . . . Largest Group 2 | . . . . 2 . . . . . . Highest-Rated Group 62 | . . . . 62 . . . . . . Highest-Rated Ally 31 | . . . . 31 . . . . . . Total Orders 2 | . . . . . . . 2 . . . EXPLORE 2 | . . . . . . . 2 . . . Ally Attacks 77 | . . . . 77 . . . . . . Total Damage 1219 | . . . . 1219 . . . . . . Kills 16 | . . . . 16 . . . . . . Allies Corrupted 1 | . . . . 1 . . . . . . Allies Melted . | . . . . . . . . . . . Intel | -11 -10 -9 -8 -8 -8 -6 -6 -5 -5 -5 ------- Run | Yrd Mat Mat Mat Sto Rec Fac DSF Fac Upp Upp Robot Analysis Total . | . . . . . . . . . . . Derelict Logs Recovered 1 | . . . . . . . . . 1 . Drone Launches 2 | . . . . . . . 2 . . . Drone Recoveries 2 | . . . . . . . 2 . . . Exploration | -11 -10 -9 -8 -8 -8 -6 -6 -5 -5 -5 ------------- Run | Yrd Mat Mat Mat Sto Rec Fac DSF Fac Upp Upp Turns Passed 12087 | 111 1285 3371 989 1843 1077 7 170 2957 259 18 Spaces Moved 6307 | 66 611 1827 466 789 656 3 115 1228 514 32 Core 690 | 20 . . . . . . . 124 514 32 Treads 1724 | . . 1528 187 . . . . 9 . . Legs 3593 | 46 611 . 279 789 656 3 115 1094 . . Wheels 299 | . . 299 . . . . . . . . Hover . | . . . . . . . . . . . Flight 1 | . . . . . . . . 1 . . Fastest Speed 50 | 50 120 105 120 120 120 120 120 50 50 50 Average Speed 135 | 132 166 151 140 141 120 120 122 137 50 50 Slowest Speed 350 | 200 190 240 240 190 120 120 190 350 50 50 Overloaded Moves . | . . . . . . . . . . . Propulsion Burnouts . | . . . . . . . . . . . Robots Hopped . | . . . . . . . . . . . Cave-ins Triggered . | . . . . . . . . . . . Exploration Rate (%) 59 | 5 68 99 41 91 96 . 82 35 63 14 Regions Visited 10 Branch Regions 4 Pre-discovered Areas . | . . . . . . . . . . . Known Exits Taken 4 | . 1 1 1 . . 1 . . . . Unknown Exits Taken 5 | 1 . . . 1 1 . . 1 1 . Scrap Searched 4 | . . . . . . . . . 1 3 Spaces Dug . | . . . . . . . . . . . Terrain Destroyed 321 | . . 35 . 104 . . . 182 . . Melee . | . . . . . . . . . . . Projectile 69 | . . . . . . . . 69 . . AOE 252 | . . 35 . 104 . . . 113 . . Terrain Rammed . | . . . . . . . . . . . Walls Destroyed . | . . . . . . . . . . . Machines Disabled . | . . . . . . . . . . . Actions | -11 -10 -9 -8 -8 -8 -6 -6 -5 -5 -5 --------- Run | Yrd Mat Mat Mat Sto Rec Fac DSF Fac Upp Upp Total 8896 | 82 794 2222 724 1309 914 6 134 2162 515 34 Wait 1792 | 1 114 197 172 363 231 . 2 712 . . Move 6297 | 65 610 1826 465 788 655 2 114 1227 513 32 Hop . | . . . . . . . . . . . Pick Up 52 | 6 7 21 4 6 . . 4 3 1 . Fast Attach 57 | 7 2 14 4 7 1 . 2 18 . 2 Attach 33 | . . 9 1 5 1 4 1 11 1 . Detach 3 | . . . . . . . . 3 . . Swap 34 | 1 4 11 4 7 1 . 4 2 . . Drop 49 | . 6 18 7 3 5 . 3 7 . . Fire 480 | 2 48 109 66 107 16 . 4 128 . . Melee 65 | . . . . 23 . . . 42 . . Ram 3 | . . 3 . . . . . . . . Kick 16 | . 3 . 1 . 3 . . 9 . . Crush 14 | . . 14 . . . . . . . . Escape Stasis . | . . . . . . . . . . . Rewire 1 | . . . . . 1 . . . . . Trap . | . . . . . . . . . . . Miscellaneous . | . . . . . . . . . . . Route ------- -11/Scrapyard -10/Materials (discovered 3 exits: *Mat x2 / *Min) -9/Materials (discovered 4 exits: *Mat x3 / *Min) -8/Materials (discovered 2 exits: *Fac / *Sto) -8/Storage (discovered 2 exits: *Fac / *Rec) -8/Recycling -6/Factory -6/DSF -5/Factory (discovered 2 exits: [*Upp x2]) -5/Upper Caves -5/Upper Caves History --------- Turn | Location | Event 40 | -11/Scrapyard | Discovered new exit (range 15) 112 | -11/Scrapyard | Entered Materials 303 | -10/Materials | Build established: Mutant 373 | -10/Materials | Discovered new exit (range 11) 612 | -10/Materials | Derelicts attacked the area 636 | -10/Materials | Build established: Scavenger-Mutant 673 | -10/Materials | Discovered new exit (range 8) 944 | -10/Materials | Discovered new exit (range 16) 1304 | -10/Materials | Identified exit to Mines 1395 | -10/Materials | Identified exit to Materials 1397 | -10/Materials | Entered another Materials area 1397 | -9/Materials | Evolved 2 slots: Utility x2 1689 | -9/Materials | Build established: Mutant 2098 | -9/Materials | Discovered new exit (range 16) 2458 | -9/Materials | Core integrity fell below 50% 2597 | -9/Materials | First assault squad dispatched 2939 | -9/Materials | Discovered new exit (range 14) 3017 | -9/Materials | Identified exit to Materials 3274 | -9/Materials | Discovered exit to Materials (range 16) 3496 | -9/Materials | Discovered exit to Materials (range 16) 4412 | -9/Materials | Identified exit to Mines 4768 | -9/Materials | Entered another Materials area 4768 | -8/Materials | Evolved 2 slots: Propulsion x2 5213 | -8/Materials | Discovered new exit (range 4) 5214 | -8/Materials | Lost 3 parts (3n) 5216 | -8/Materials | Identified exit to Factory 5603 | -8/Materials | Discovered new exit (range 14) 5642 | -8/Materials | Identified exit to Storage 5757 | -8/Materials | Entered Storage 5806 | -8/Storage | Garrison activated, responded to threat 6297 | -8/Storage | Lost 3 parts (1n2w) 6297 | -8/Storage | Core integrity fell below 50% 6427 | -8/Storage | Met a pair of Derelict thieves 6552 | -8/Storage | Destroyed 8 combat bots 6557 | -8/Storage | First assault squad dispatched 7049 | -8/Storage | Discovered exit to Factory (range 16) 7172 | -8/Storage | Build established: Scavenger-Mutant 7595 | -8/Storage | Used back door to open Recycling access 7595 | -8/Storage | Discovered new exit (range 5) 7600 | -8/Storage | Entered Recycling 7601 | -8/Recycling | Found Scrap Engine 7803 | -8/Recycling | Discovered new exit (range 14) 8677 | -8/Recycling | Entered Factory 8677 | -6/Factory | Evolved 4 slots: Utility x3, Weapon x1 8684 | -6/Factory | Identified exit to DSF 8684 | -6/Factory | Entered DSF 8707 | -6/DSF | Additional patrols routed to DSF 8836 | -6/DSF | Discovered new exit (range 16) 8854 | -6/DSF | Entered Factory 8854 | -5/Factory | Evolved 2 slots: Utility x1, Weapon x1 9086 | -5/Factory | Build established: Tank 9179 | -5/Factory | Discovered new exit (range 11) 10607 | -5/Factory | Lost 3 parts (1n2u) 10805 | -5/Factory | Build established: Gunner 11254 | -5/Factory | First assault squad dispatched 11264 | -5/Factory | Discovered new exit (range 5) 11625 | -5/Factory | System corruption reached 10% 11723 | -5/Factory | Core integrity fell below 50% 11790 | -5/Factory | Core integrity fell below 20% 11796 | -5/Factory | Lost 17 parts (1p6n7u3w) 11811 | -5/Factory | Entered Upper Caves 11847 | -5/Upper Caves | Encountered a Warlord checkpoint 11974 | -5/Upper Caves | Build established: Mutant 12021 | -5/Upper Caves | Discovered new exit (range 15) 12067 | -5/Upper Caves | Attracted the attention of an 0b10 outpost 12070 | -5/Upper Caves | Entered another Upper Caves area 12074 | -5/Upper Caves | Attracted the attention of an 0b10 outpost 12088 | -5/Upper Caves | Destroyed by S-27 Virus with Autogun Last Messages --------------- 12074_ Y-72 Warden: "DETECTED UNIDENTIFIED DERELICT." 12074_ Hvy. Mace destroyed. 12074_ Acquired Unknown Processor. 12074_ Identified Imp. Terrain Scan Processor. 12076_ System corrupted: Heat flow error (+275). 12077_ Overheating: System interference. 12077_ Targeting Computer temporarily disabled. 12077_ Targeting Computer destroyed. 12078_ Y-72 Warden: "REQUESTING BACKUP." 12082_ S-27 Virus destroyed. 12086_ Searching scrap... 12086_ Found Seismic Detector. 12086_ Found 22 Matter. 12087_ Searching scrap... 12087_ Found Ripper. 12087_ Found Energy Filter. 12087_ Found 43 Matter. 12088_ Acquired 8 matter. 12088_ Acquired Ripper. Map ----- +----------------------------------------------------+ | ?????????????????????????????????????????????????? | | ?????????????????????????????????????????????????? | | ?????????????????????????????????????????????????? | | ?????????????????????????????????????????????????? | | ?????????????????????????????????????????????????? | | ?????????????????????????????????????????????????? | | ??????????????????????????????????????###????????? | | ?????????????????????????????????????## #???????? | | ?????????????????????????????????????? ######## | | ??????????????????????????????????????# | | ????????????????????????????????????### | | ????????????????????????????????????# | | ???????????????????????????????###### | | ???????????????????????????????# # | | ????????????????????????????????# | | ?????????????????????????????####??# * | | ?????????????????????????????# ### %[ | | ??????????????????????????????# ### =" | | ???????????????????????????????# #### ##! | | ????????????????????????????????# ### ###%[ | | ????????????????????????????##### s ##?#! # | | ???????????????????????????## ## ###?## | | ?????????????????## ???????# ##### | | ?????????????????# ###### ## | | ?????????????????# # % % ### | | ???????????????????# !@! # ##?## | | ????????????????# ###### ##### ##???#### | | ???????????????# ???????# #???## ## #???????# | | ?????????????????????????# #????##### #??????# | | ?????????????????????????# #????????## #??????# | | ?????????????????????????# ?????????# #?????# | | ????????????????????????? ?????????# #?????## | | ?????????????????????????## ?????????# #??????## | | ???????????????????????????##????????# #???????# | | ????????????????????????????????????? #??????? | | ????????????????????????????????????? #??????? | | ?????????????????????????????????????# ##??????## | | ?????????????????????????????????????? ?????????# | | ?????????????????????????????????????? ?????????# | | ????????????????????????????????????????????????? | | ?????????????????????????????????????????????????? | | ?????????????????????????????????????????????????? | | ?????????????????????????????????????????????????? | | ?????????????????????????????????????????????????? | | ?????????????????????????????????????????????????? | | ?????????????????????????????????????????????????? | | ?????????????????????????????????????????????????? | | ?????????????????????????????????????????????????? | | ?????????????????????????????????????????????????? | | ?????????????????????????????????????????????????? | +----------------------------------------------------+ Best States ------------- Heat Dissipation 78 Energy Generation 18 Energy Capacity 655 Matter Stores 300 Matter Capacity 300 Sight Range 16 Robot Scan Range 15 Terrain Scan Density 110 Armor Coverage 450 Propulsion Shielding 33 Evasion (%) 55 Targeting Accuracy 15 Recoil Reduction 6 Kinecelleration 30 Authchip Count 4 Item Schematics ----------------- System Restoration Module | -5/Factory | Extracted Arc Projector | -5/Factory | Extracted Hvy. Pick | -5/Factory | Extracted Lgt. Fission Core | -5/Factory | Extracted Adv. Hacking Suite | -5/Factory | Extracted Imp. Thermal Shield | -5/Factory | Extracted Adv. Plasma Cannon | -5/Factory | Extracted Robot Schematics ------------------ None Fabricated ------------ Nothing Alien Tech Used ----------------- None Achievements -------------- None Challenges ------------ None Game ------ Seed SurveybotOmegaPendant Manual? 0 Play Time 02:15:50 Cumulative 40.7 hours Start 2024.04.20 @ 15:01:58 End 2024.04.20 @ 18:22:51 Sessions 1 Manual Loads 0 Difficulty Rogue Special Mode None Game No. 38 Rogue 26 Adventurer 12 Explorer 0 Win Type - Total 0 Types 0/0/0/0/0/0/0/0/0 Lore% 22 Gallery% 36 Achievement% 29 Wizard Run 0 Options --------- Layout 2 ASCII 0 Keyboard 0 Movement Mouse Keybinds 0 Fullscreen 1 Font 24/Smallcaps Map View 50x44 Zoom Use 20% Tactical HUD 1 Map Filters NONE Filters NONE Steam 1 RUN: 4ffee49c-830f-4db1-9f9a-cc53e6fa7332